Workbook

Sheet 읍면동별 세대 및 인구
A1: 여수시 읍면동별 세대 및 인구
A2: 작성기준 : 2018. 7. 31. 현재 | J2: (단위 : 세대, 명)
A3: 구 분 | B3: 세대수1) | C3: 합 계 | F3: 한국인 | I3: 외국인
C4: 계 | D4: 남 | E4: 여 | F4: 계 | G4: 남 | H4: 여 | I4: 계 | J4: 남 | K4: 여
A5: 2017년 말 | B5: 119,684 | C5: 290,528 | D5: 148,022 | E5: 142,506 | F5: 286,382 | G5: 145,122 | H5: 141,260 | I5: 4,146 | J5: 2,900 | K5: 1,246
A6: 18년 1월말 | B6: 119,743 | C6: 290,288 | D6: 147,908 | E6: 142,380 | F6: 286,154 | G6: 145,019 | H6: 141,135 | I6: 4,134 | J6: 2,889 | K6: 1,245
A7: 18년 2월말 | B7: 119,882 | C7: 289,956 | D7: 147,772 | E7: 142,184 | F7: 285,858 | G7: 144,910 | H7: 140,948 | I7: 4,098 | J7: 2,862 | K7: 1,236
A8: 18년 3월말 | B8: 119,912 | C8: 289,713 | D8: 147,654 | E8: 142,059 | F8: 285,529 | G8: 144,731 | H8: 140,798 | I8: 4,184 | J8: 2,923 | K8: 1,261
A9: 18년 4월말 | B9: 120,098 | C9: 289,644 | D9: 147,614 | E9: 142,030 | F9: 285,447 | G9: 144,682 | H9: 140,765 | I9: 4,197 | J9: 2,932 | K9: 1,265
A10: 18년 5월말 | B10: 120,213 | C10: 289,518 | D10: 147,533 | E10: 141,985 | F10: 285,317 | G10: 144,598 | H10: 140,719 | I10: 4,201 | J10: 2,935 | K10: 1,266
A11: 18년 6월말 | B11: 120,318 | C11: 289,420 | D11: 147,532 | E11: 141,888 | F11: 285,158 | G11: 144,549 | H11: 140,609 | I11: 4,262 | J11: 2,983 | K11: 1,279
A12: 18년 7월말 | B12: =SUM(B13:B39) -> 120,318 | C12: =D12+E12 -> 289,289 | D12: =SUM(D13:D39) -> 147,506 | E12: =SUM(E13:E39) -> 141,783 | F12: =G12+H12 -> 284,973 | G12: =SUM(G13:G39) -> 144,464 | H12: =SUM(H13:H39) -> 140,509 | I12: =J12+K12 -> 4,316 | J12: =SUM(J13:J39) -> 3,042 | K12: =SUM(K13:K39) -> 1,274
A13: 돌산읍 | B13: 6,439 | C13: =SUM(D13:E13) -> 14,420 | D13: =SUM(G13+J13) -> 7,566 | E13: =SUM(H13+K13) -> 6,854 | F13: 13,722 | G13: 6,949 | H13: 6,773 | I13: =SUM(J13:K13) -> 698 | J13: 617 | K13: 81
A14: 소라면 | B14: 8,526 | C14: 21,154 | D14: =SUM(G14+J14) -> 10,686 | E14: =SUM(H14+K14) -> 10,468 | F14: 21,020 | G14: 10,640 | H14: 10,380 | I14: =SUM(J14:K14) -> 134 | J14: 46 | K14: 88
A15: 율촌면 | B15: 3,259 | C15: 6,874 | D15: 3,578 | E15: 3,296 | F15: 6,706 | G15: 3,455 | H15: 3,251 | I15: 168 | J15: 123 | K15: 45
A16: 화양면 | B16: 3,492 | C16: 6,956 | D16: 3,652 | E16: 3,304 | F16: 6,733 | G16: 3,474 | H16: 3,259 | I16: 223 | J16: 178 | K16: 45
A17: 남면 | B17: 1,714 | C17: 3,182 | D17: 1,658 | E17: 1,524 | F17: 3,078 | G17: 1,564 | H17: 1,514 | I17: 104 | J17: 94 | K17: 10
A18: 화정면 | B18: 1,283 | C18: 2,347 | D18: 1,165 | E18: 1,182 | F18: 2,287 | G18: 1,110 | H18: 1,177 | I18: 60 | J18: 55 | K18: 5
A19: 삼산면 | B19: 1,180 | C19: 2,222 | D19: 1,253 | E19: 969 | F19: 2,132 | G19: 1,173 | H19: 959 | I19: 90 | J19: 80 | K19: 10
A20: 동문동 | B20: 2,293 | C20: 4,345 | D20: 2,214 | E20: 2,131 | F20: 4,283 | G20: 2,171 | H20: 2,112 | I20: 62 | J20: 43 | K20: 19
A21: 한려동 | B21: 1,642 | C21: 3,174 | D21: 1,602 | E21: 1,572 | F21: 3,145 | G21: 1,590 | H21: 1,555 | I21: 29 | J21: 12 | K21: 17
A22: 중앙동 | B22: 2,436 | C22: 5,055 | D22: 2,527 | E22: 2,528 | F22: 4,966 | G22: 2,468 | H22: 2,498 | I22: 89 | J22: 59 | K22: 30
A23: 충무동 | B23: 2,270 | C23: 4,419 | D23: 2,292 | E23: 2,127 | F23: 4,375 | G23: 2,265 | H23: 2,110 | I23: 44 | J23: 27 | K23: 17
A24: 광림동 | B24: 3,247 | C24: 6,740 | D24: 3,480 | E24: 3,260 | F24: 6,689 | G24: 3,468 | H24: 3,221 | I24: 51 | J24: 12 | K24: 39
A25: 서강동 | B25: 1,896 | C25: 4,001 | D25: 2,000 | E25: 2,001 | F25: 3,968 | G25: 1,993 | H25: 1,975 | I25: 33 | J25: 7 | K25: 26
A26: 대교동 | B26: 3,134 | C26: 6,151 | D26: 3,247 | E26: 2,904 | F26: 5,866 | G26: 3,002 | H26: 2,864 | I26: 285 | J26: 245 | K26: 40
A27: 국동 | B27: 5,418 | C27: 12,970 | D27: 6,684 | E27: 6,286 | F27: 12,588 | G27: 6,353 | H27: 6,235 | I27: 382 | J27: 331 | K27: 51
A28: 월호동 | B28: 2,908 | C28: 7,780 | D28: 4,001 | E28: 3,779 | F28: 7,516 | G28: 3,755 | H28: 3,761 | I28: 264 | J28: 246 | K28: 18
A29: 여서동 | B29: 7,907 | C29: 20,582 | D29: 10,179 | E29: 10,403 | F29: 20,441 | G29: 10,111 | H29: 10,330 | I29: 141 | J29: 68 | K29: 73
A30: 문수동 | B30: 8,660 | C30: 21,094 | D30: 10,574 | E30: 10,520 | F30: 20,847 | G30: 10,423 | H30: 10,424 | I30: 247 | J30: 151 | K30: 96
A31: 미평동 | B31: 5,571 | C31: 12,610 | D31: 6,585 | E31: 6,025 | F31: 12,416 | G31: 6,468 | H31: 5,948 | I31: 194 | J31: 117 | K31: 77
A32: 둔덕동 | B32: 4,014 | C32: 11,104 | D32: 5,569 | E32: 5,535 | F32: 11,009 | G32: 5,527 | H32: 5,482 | I32: 95 | J32: 42 | K32: 53
A33: 만덕동 | B33: 4,015 | C33: 10,349 | D33: 5,168 | E33: 5,181 | F33: 10,185 | G33: 5,069 | H33: 5,116 | I33: 164 | J33: 99 | K33: 65
A34: 쌍봉동 | B34: 13,152 | C34: 34,874 | D34: 17,703 | E34: 17,171 | F34: 34,670 | G34: 17,607 | H34: 17,063 | I34: 204 | J34: 96 | K34: 108
A35: 시전동 | B35: 11,346 | C35: 31,635 | D35: 15,834 | E35: 15,801 | F35: 31,425 | G35: 15,735 | H35: 15,690 | I35: 210 | J35: 99 | K35: 111
A36: 여천동 | B36: 9,680 | C36: 22,704 | D36: 11,751 | E36: 10,953 | F36: 22,551 | G36: 11,700 | H36: 10,851 | I36: 153 | J36: 51 | K36: 102
A37: 주삼동 | B37: 2,969 | C37: 8,486 | D37: 4,329 | E37: 4,157 | F37: 8,428 | G37: 4,300 | H37: 4,128 | I37: 58 | J37: 29 | K37: 29
A38: 삼일동 | B38: 1,289 | C38: 2,817 | D38: 1,571 | E38: 1,246 | F38: 2,689 | G38: 1,456 | H38: 1,233 | I38: 128 | J38: 115 | K38: 13
A39: 묘도동 | B39: 578 | C39: 1,244 | D39: 638 | E39: 606 | F39: 1,238 | G39: 638 | H39: 600 | I39: 6 | J39: 0 | K39: 6
A40: 주 : 1) 세대수에는 외국인 세대 제외

Sheet 65세이상 인구(총괄)
A1: 65세이상 인구 현황(총괄)
A2: 작성기준 : 2018. 7. 31. 현재 | D2: (단위 : 명)
A3: 구 분 | B3: 계 | C3: 남 | D3: 여 | E3: 노령화 지수
A4: 2011년말 | B4: 37,830 | C4: 15,023 | D4: 22,807 | E4: 82.0
A5: 2012년말 | B5: 39,671 | C5: 15,929 | D5: 23,742 | E5: 89.4
A6: 2013년말 | B6: 41,369 | C6: 16,775 | D6: 24,594 | E6: 96.8
A7: 2014년말 | B7: 43,225 | C7: 17,752 | D7: 25,473 | E7: 105.4
A8: 2015년말 | B8: 44,997 | C8: 18,775 | D8: 26,222 | E8: 114.3
A9: 2016년말 | B9: 46,632 | C9: 19,720 | D9: 26,912 | E9: 121.8
A10: 2017년말 | B10: 48,569 | C10: 20,703 | D10: 27,866 | E10: 130.6
A11: 2018년 1월말 | B11: =SUM(C11:D11) -> 48,627 | C11: 20,751 | D11: 27,876 | E11: =B11/37049*100 -> 131.3
A12: 2018년 2월말 | B12: 48,684 | C12: 20,804 | D12: 27,880 | E12: 131.7
A13: 2018년 3월말 | B13: 48,775 | C13: 20,840 | D13: 27,935 | E13: 132.3
A14: 2018년 4월말 | B14: 48,814 | C14: 20,847 | D14: 27,967 | E14: 132.6
A15: 2018년 5월말 | B15: 48,923 | C15: 20,913 | D15: 28,010 | E15: 133.4
A16: 2018년 6월말 | B16: 49,020 | C16: 20,958 | D16: 28,062 | E16: 134.1
A17: 2018년 7월말 | B17: =SUM(C17:D17) -> 49,138 | C17: 21,001 | D17: 28,137 | E17: 134.8
A18: 자료 : 민원지적과
A19: 주 : 노령화 지수 = (65세이상인구 / 0~14세 인구) * 100
